bitfinex/quotes_ETHUSD_20240701
["timestamp","ask_amount","ask_price","bid_price","bid_amount"]
[1719797956482,3.0,3510.2,3508.6,3.0]
[1719797956638,6.9206,3510.1,3508.6,3.0]
[1719797956835,2.84908,3509.9,3508.3,2.85]
[1719797957037,2.84958,3509.3,3508.1,3.0]
[1719797957279,3.134608,3509.2,3508.1,3.0]
[1719797957866,2.84973,3509.1,3508.1,3.0]
[1719797958043,0.284958,3509.2,3508.1,3.0]
[1719797958245,0.284958,3509.2,3508.1,5.85054]
[1719797958442,2.84941,3509.5,3508.4,2.85029]
[1719797958664,3.0,3509.4,3508.4,2.85029]
[1719797959144,5.84952,3509.4,3508.2,2.90743905]
[1719797959486,5.84952,3509.4,3507.7,7.4935]
[1719797959487,2.84974,3509.1,3507.9,2.85067]
[1719797959779,0.284974,3509.0,3507.9,2.85067]
[1719797960186,0.284974,3509.0,3507.8,2.85078]
[1719797960187,0.284974,3509.0,3507.7,5.85083]
[1719797960489,2.84976,3509.1,3507.7,3.0]
[1719797960703,2.84957,3509.3,3508.2,2.85043]
[1719797960908,2.84957,3509.3,3507.7,3.0]
[1719797960909,3.0,3509.2,3508.1,2.85054]
[1719797961214,3.284957,3509.2,3508.1,2.85054]
[1719797961378,3.284957,3509.2,3508.1,0.0570062]
[1719797961379,3.0,3509.2,3508.1,0.0570062]
[1719797961562,3.0,3509.4,3508.1,2.9075062]
[1719797961772,3.0,3509.4,3508.1,2.8505]
[1719797962174,3.0,3509.4,3508.3,3.0]
[1719797962482,4.04739417,3510.4,3508.7,2.85005]
[1719797962483,12.76977,3509.8,3508.7,2.85005]
[1719797962697,5.84931,3509.7,3508.6,0.05699652]
[1719797962885,1.861908,3509.6,3508.6,0.05699652]
[1719797963079,1.861908,3509.6,3508.7,2.85004]
[1719797963400,2.84884,3510.2,3509.1,2.84966]
[1719797963571,9.65067,3510.3,3508.9,2.84987]
[1719797963770,2.849,3510.0,3509.0,2.8498]
[1719797964210,2.84923,3509.8,3508.7,3.0]
[1719797964381,3.419103,3509.7,3508.7,3.0]
[1719797964794,6.268403,3509.7,3508.7,3.0]
[1719797965125,6.268403,3509.7,3507.8,2.85078]
[1719797965126,2.84983,3509.0,3507.8,2.85078]
[1719797965275,2.84983,3509.0,3508.0,3.0]
[1719797965475,2.84941,3509.5,3508.1,0.05700388]
[1719797965675,5.84949,3509.4,3508.2,2.85045]
[1719797965877,2.85013,3508.7,3507.6,3.0]
[1719797966201,2.84988,3509.0,3507.9,3.0]
[1719797966202,2.84994,3508.9,3507.9,3.0]
[1719797966514,2.84998,3508.8,3507.9,3.0]
[1719797966806,2.84998,3508.8,3507.5,2.851]
[1719797966807,3.815078,3508.9,3507.5,5.851]
[1719797966992,2.85015,3508.6,3507.5,5.851]
[1719797967193,2.85001,3508.8,3507.6,2.90795051]
[1719797967515,2.85009,3508.7,3507.6,2.90795051]
[1719797968124,2.84997,3508.8,3507.6,0.05701051]
[1719797968314,0.965178,3508.9,3507.4,2.85108]
[1719797968619,2.85028,3508.5,3507.4,2.85108]
[1719797969691,2.85028,3508.5,3507.6,3.0]
[1719797969874,3.815078,3508.9,3507.6,3.0]
[1719797970085,2.85024,3508.5,3507.6,3.0]
[1719797970279,0.965178,3508.9,3507.8,2.85078]
[1719797970505,6.8019,3509.2,3507.6,3.0]
[1719797970506,6.8019,3509.2,3508.2,2.85044]
[1719797970706,2.84957,3509.3,3508.3,0.05700067]
[1719797971023,2.84954,3509.4,3508.3,2.90737119]
[1719797971185,2.8494,3509.5,3508.3,2.90737119]
[1719797971186,2.84957,3509.3,3508.3,0.05700119]
[1719797971373,0.569897,3509.2,3508.1,2.85054]
[1719797971716,0.569897,3509.2,3508.2,0.05699908]
[1719797971874,0.569897,3509.2,3508.2,2.90743908]
[1719797972071,0.569897,3509.2,3508.3,0.05699909]
[1719797972315,2.8494,3509.5,3508.3,0.05699909]
[1719797972488,10.478673,3509.7,3508.5,2.85021]
[1719797972489,2.84935,3509.6,3508.5,2.85021]
[1719797972685,2.84943,3509.5,3508.4,2.85026]
[1719797973486,7.629423,3509.7,3508.4,2.85026]
[1719797973487,2.84949,3509.4,3508.4,2.85026]
[1719797973675,2.84965,3509.2,3508.2,3.0]
[1719797973920,2.8499,3508.9,3507.8,5.85073]
[1719797974093,0.28499,3508.8,3507.9,2.85069]
[1719797974503,2.84977,3509.1,3507.9,2.85069]
[1719797974675,2.84965,3509.2,3507.9,2.85069]
[1719797974878,2.8499,3508.9,3507.8,5.85076]
[1719797975879,2.84976,3509.1,3507.8,3.0]
[1719797976106,1.3328153,3509.4,3508.2,2.85044]
[1719797976306,2.84965,3509.2,3508.2,2.85044]
[1719797976879,4.1823053,3509.4,3508.3,0.057002]
[1719797977097,3.0,3509.6,3508.7,2.85005]
[1719797977279,0.569823,3509.7,3508.9,2.84989]
[1719797977481,3.0,3509.9,3508.9,2.84989]
[1719797977918,3.0,3509.9,3508.8,0.05699451]
[1719797978094,2.84917,3509.8,3508.8,0.05699451]
[1719797978817,2.84909,3509.9,3508.8,2.90695451]
[1719797978976,3.584909,3509.8,3508.8,2.90695451]
[1719797979439,3.584909,3509.8,3508.9,5.6997]
[1719797979631,3.0,3510.0,3509.0,0.05699029]
[1719797979927,5.84901,3510.0,3508.9,2.84983]
[1719797980435,5.84901,3510.0,3508.7,2.85004]
[1719797980436,3.0,3510.0,3508.7,2.85004]
[1719797980718,3.0,3510.0,3509.0,2.84981]
[1719797980928,4.166493,3509.9,3508.8,2.84996]
[1719797981129,3.0,3509.8,3508.8,2.84996]
[1719797981421,1.317343,3509.9,3508.8,2.90695304]
[1719797981731,7.3245,3510.2,3509.3,2.84954]
[1719797982028,10.17335,3510.2,3509.1,2.84972]
[1719797982195,10.17335,3510.2,3509.1,2.90670816]
[1719797982600,7.3245,3510.2,3509.1,0.05698816]
[1719797982820,2.84878,3510.3,3509.3,2.84956]
[1719797983119,3.0,3510.2,3509.3,2.84956]
[1719797984310,6.9889,3510.8,3509.8,2.8491]
[1719797984627,6.9889,3510.8,3509.3,3.0]
[1719797984628,0.005,3510.8,3509.9,2.9060387]
[1719797984783,0.005,3510.8,3509.9,0.0569787]
[1719797984982,0.005,3510.8,3509.7,2.84924]
[1719797985183,0.005,3510.8,3509.8,0.0569742]
[1719797985429,0.005,3510.8,3510.0,2.84892]
[1719797985735,0.005,3510.8,3510.2,2.84882]
[1719797986726,0.005,3510.8,3510.1,0.05697127]
[1719797987527,0.005,3510.8,3509.8,2.84915]
[1719797988522,2.84861,3510.5,3509.3,5.84956]
[1719797988703,2.84861,3510.5,3509.4,3.0]
[1719797988906,2.84877,3510.3,3509.1,2.84967]
[1719797989226,2.84877,3510.3,3509.2,2.84964]
[1719797991213,2.84903,3510.0,3509.0,3.0]
[1719797991450,0.569788,3509.9,3509.0,3.0]
[1719797992246,2.84916,3509.8,3509.0,3.0]
[1719797992806,0.569788,3509.9,3509.0,3.0]
[1719797993035,3.418888,3509.9,3509.0,3.0]
[1719797994041,0.569788,3509.9,3509.0,3.0]
[1719797994201,3.0,3510.3,3509.0,3.0]
[1719797994817,2.84925,3509.7,3508.5,3.2856]
[1719797995135,9.71948,3510.2,3508.5,3.0]
[1719797995136,2.84942,3509.5,3508.5,3.0]
[1719797995515,2.84931,3509.7,3508.5,3.0]
[1719797995767,2.84983,3509.0,3507.9,7.4688]
[1719797996063,2.84983,3509.0,3507.9,8.610096]
[1719797996263,2.84991,3508.9,3507.9,1.141296]
[1719797996919,2.84991,3508.9,3507.9,3.991976]
[1719797997161,2.84978,3509.1,3507.9,3.991976]
[1719797997656,2.84978,3509.1,3508.0,2.85061]
[1719798000466,10.354,3509.6,3507.9,1.141296]
[1719798000618,6.9204,3510.6,3509.1,3.0]
[1719798000836,0.005,3510.9,3509.7,2.84917]
[1719798001149,0.005,3510.9,3509.6,2.90624946]
[1719798001335,0.005,3510.9,3509.7,2.84924]
[1719798001524,0.005,3510.9,3509.8,2.90612955]
[1719798001724,0.005,3510.9,3510.1,2.8489]
[1719798002120,0.005,3510.9,3510.3,2.84875]
[1719798002327,0.005,3510.9,3510.4,2.84866]
[1719798002823,0.005,3510.9,3510.5,2.84857]
[1719798003319,0.005,3510.9,3510.6,0.05696834]
[1719798003748,0.005,3510.9,3510.5,3.0]
[1719798003962,0.005,3510.9,3510.6,0.05696286]
[1719798004173,0.005,3510.9,3510.7,2.84843]
[1719798006677,0.005,3510.9,3510.1,3.0]
[1719798006834,0.005,3510.9,3510.2,3.05696998]
[1719798007041,0.005,3510.9,3510.4,2.84866]
[1719798007747,0.005,3510.9,3510.2,3.0]
[1719798008080,0.005,3510.9,3510.3,2.84873]
[1719798008579,0.005,3510.9,3510.1,2.84887]
[1719798008875,0.005,3510.9,3510.0,2.84898]
[1719798009174,0.005,3510.9,3509.7,2.69]
[1719798009388,2.84852,3510.6,3509.4,2.84942]
[1719798009539,0.971152,3510.5,3509.4,2.84942]
[1719798010384,6.858,3510.7,3509.9,2.84902]
[1719798010577,6.858,3510.7,3509.8,2.84916]
[1719798014095,6.858,3510.7,3509.1,3.2856]
[1719798014096,6.858,3510.7,3509.1,3.0]
[1719798014239,2.84878,3510.3,3509.1,3.0]
[1719798014442,2.84878,3510.3,3509.4,3.0]
[1719798014649,0.284878,3510.2,3509.2,2.84964]
[1719798014866,0.284878,3510.2,3509.3,3.0]
[1719798015278,0.284878,3510.2,3509.2,2.84964]
[1719798015577,7.0879,3509.8,3508.8,11.35997]
[1719798015792,7.0879,3509.8,3508.8,8.66997]
[1719798015973,9.93708,3509.8,3508.8,5.82]
[1719798016280,2.84934,3509.6,3508.8,3.0]
[1719798016466,1.278642,3509.5,3508.5,2.8502]
[1719798016779,1.278642,3509.5,3508.7,3.0]
[1719798016978,1.278642,3509.5,3508.5,2.8502]
[1719798017168,1.278642,3509.5,3508.7,3.0]
[1719798017356,1.278642,3509.5,3508.7,5.85003]
[1719798017677,2.84904,3510.0,3508.8,2.90689634]
[1719798018197,2.84909,3509.9,3508.8,2.90689634]
[1719798018710,2.84917,3509.8,3508.8,2.8499]
[1719798018846,2.84925,3509.7,3508.7,5.85004]
[1719798019040,2.84911,3509.9,3508.7,5.84999]
[1719798019601,3.83852,3510.2,3509.1,2.84972]
[1719798019804,3.0,3510.1,3509.2,0.05698914]
[1719798019953,1.673515,3510.1,3509.3,2.84953]
[1719798020146,6.8968,3510.3,3509.3,2.84953]
[1719798020691,6.8968,3510.3,3509.1,3.0]
[1719798020692,6.8968,3510.3,3509.1,5.84968]
[1719798021206,2.84884,3510.2,3509.2,2.84961]
[1719798021364,3.823494,3510.1,3509.1,5.84972]
[1719798021569,6.8968,3510.3,3509.6,2.8493]
[1719798021874,6.8968,3510.3,3509.6,3.0]
[1719798024364,6.8968,3510.3,3509.3,2.84955]
[1719798025709,2.84843,3510.7,3509.3,2.84955]
[1719798025907,3.0,3510.6,3509.3,2.84955]
[1719798026104,3.0,3510.6,3509.6,2.84926]
[1719798026305,2.84886,3510.2,3509.2,3.0]
[1719798026495,2.84886,3510.2,3509.2,5.84964]
[1719798027603,2.84894,3510.1,3509.2,3.0]
[1719798027913,0.56978,3510.0,3509.2,3.0]
[1719798028069,2.84886,3510.2,3509.2,5.84964]
[1719798028886,3.0,3510.6,3509.2,3.0]
[1719798029120,1.611399,3510.7,3509.8,2.84911]
[1719798029121,4.611399,3510.7,3509.8,2.84911]
[1719798029326,7.4122,3510.8,3510.0,2.84899]
[1719798029492,7.4122,3510.8,3510.1,2.84892]
[1719798029878,0.005,3510.8,3510.1,2.84892]
[1719798030511,0.005,3510.8,3510.2,0.05697365]
[1719798030687,0.005,3510.8,3510.2,2.84881]
[1719798031423,0.005,3510.8,3510.3,2.90571815]
[1719798031725,0.005,3510.8,3510.3,2.84875]
[1719798034219,0.005,3510.8,3510.2,2.84883]
[1719798035019,0.005,3510.8,3510.0,5.84896]
[1719798035335,0.005,3510.8,3510.0,3.0]
[1719798035494,0.005,3510.8,3510.2,2.84881]
[1719798037850,0.005,3510.8,3510.1,1.140659]
[1719798038149,2.84851,3510.6,3510.1,1.140659]
[1719798038656,2.85336,3510.8,3510.0,3.0]
[1719798038936,2.84843,3510.7,3510.0,3.0]
[1719798039143,2.84852,3510.6,3509.8,1.140752]
[1719798039351,0.285352,3510.5,3509.8,1.140752]
[1719798039508,2.85335,3510.8,3509.8,1.140752]
[1719798039701,2.85335,3510.8,3509.8,3.989902]
[1719798040040,2.85335,3510.8,3509.8,1.140752]
[1719798040041,0.005,3510.8,3509.8,1.140752]
[1719798040207,7.0552,3510.3,3509.6,3.0]
[1719798040549,0.990389,3510.2,3509.6,1.14084]
[1719798040837,7.0552,3510.3,3509.6,1.14084]
[1719798041042,7.0552,3510.3,3509.6,4.14084]
[1719798041397,7.0552,3510.3,3509.6,6.99015]
[1719798041738,2.84852,3510.6,3509.6,6.99015]
[1719798042052,1.282898,3510.5,3509.8,2.84912]
[1719798042247,9.98046,3510.8,3509.8,2.84912]
[1719798042553,7.1321,3510.8,3509.8,2.90612726]
[1719798043823,7.1321,3510.8,3510.0,2.84893]
[1719798044406,7.1321,3510.8,3509.6,6.99016]
[1719798044663,0.71371,3510.7,3509.6,6.99016]
[1719798044807,3.56214,3510.7,3509.7,2.84924]
[1719798045207,2.84867,3510.5,3509.6,4.14084]
[1719798045501,2.84867,3510.5,3509.3,3.0]
[1719798045502,2.84873,3510.4,3509.3,5.84956]
[1719798045705,0.569736,3510.3,3509.3,8.84956]
[1719798046056,3.418496,3510.3,3509.5,1.140852]
[1719798046524,0.569736,3510.3,3509.5,1.140852]
[1719798046721,2.84863,3510.5,3509.5,1.140852]
[1719798047361,7.1321,3510.8,3509.7,3.0]
[1719798048743,7.1321,3510.8,3510.1,2.84891]
[1719798052775,0.005,3510.8,3510.2,2.84883]
[1719798053773,0.005,3510.8,3510.3,0.05697343]
[1719798053976,0.005,3510.8,3510.5,2.84854]
[1719798055877,0.005,3510.8,3510.2,3.0]
[1719798056090,0.005,3510.8,3509.9,2.84904]
[1719798056238,0.005,3510.8,3510.0,2.849]
[1719798056441,0.290828,3510.8,3510.1,2.84892]
[1719798057177,0.290828,3510.8,3509.9,2.84903]
[1719798057377,0.005,3510.8,3509.9,2.84903]
[1719798057592,0.005,3510.8,3510.0,2.84899]
[1719798058293,0.005,3510.8,3509.8,3.0]
[1719798058294,2.85336,3510.8,3509.8,5.84916]
[1719798060076,0.005,3510.8,3509.9,2.84908]
[1719798060248,0.005,3510.8,3509.9,0.05697498]
[1719798060444,0.005,3510.8,3510.7,2.84843]
[1719798060645,0.005,3510.8,3510.7,11.54529]
[1719798060887,0.005,3510.8,3510.7,8.69686]
[1719798062388,0.005,3511.8,3511.4,3.0]
[1719798062575,0.005,3511.8,3511.6,2.84769]
[1719798063008,7.1973,3512.0,3511.4,3.0]
[1719798064015,7.1973,3512.0,3511.5,2.84774]
[1719798064491,7.1973,3512.5,3511.6,2.8477]
[1719798064845,3.0,3512.4,3511.6,2.8477]
[1719798066706,3.0,3512.4,3511.7,2.84761]
[1719798067018,7.1973,3512.5,3511.9,2.84744]
[1719798068994,7.1973,3512.5,3511.7,2.84761]
[1719798069774,7.1973,3512.5,3511.8,2.84752]
[1719798071196,7.1973,3512.5,3511.9,2.84745]
[1719798071403,7.0004,3513.7,3512.1,3.0]
[1719798071701,2.84633,3513.3,3512.2,2.90413616]
[1719798071996,56.36668846,3514.0,3511.6,5.84769]
[1719798071997,7.3031,3512.6,3511.6,5.84769]
[1719798072181,7.3031,3512.6,3511.6,3.0]
[1719798072497,7.3031,3512.6,3511.9,2.84744]
[1719798072653,7.3031,3512.6,3511.7,2.84757]
[1719798073082,7.3031,3512.6,3511.6,5.84768]
[1719798073083,7.3031,3512.6,3511.8,2.84752]
[1719798073466,10.15001,3512.6,3511.6,5.84768]
[1719798074219,7.3031,3512.6,3511.7,2.84761]
[1719798075992,10.14999,3512.6,3511.7,2.84761]
[1719798076784,10.14999,3512.6,3511.6,3.0]
[1719798077121,6.844,3511.6,3510.2,0.2856]
[1719798077276,2.84803,3511.2,3510.2,2.8488]
[1719798077479,2.84803,3511.2,3509.7,1.60172202]
[1719798077480,2.84816,3511.1,3510.5,1.140537]
[1719798077686,2.84821,3511.0,3510.5,1.140537]
[1719798077887,2.84821,3511.0,3510.0,2.84893]
[1719798078119,2.84821,3511.0,3510.1,1.140662]
[1719798078494,2.84821,3511.0,3510.0,2.84893]
[1719798078821,2.84803,3511.2,3510.1,1.140677]
[1719798078979,5.84811,3511.1,3510.1,1.140677]
[1719798079382,3.0,3511.1,3510.2,3.0]
[1719798079580,5.84795,3511.3,3510.3,2.84872]
[1719798079839,2.84795,3511.3,3510.3,2.84872]
[1719798080017,3.0,3511.2,3510.3,2.84872]
[1719798080529,0.6844,3511.5,3510.5,2.84858]
[1719798080691,3.0,3511.5,3510.6,5.84849]
[1719798082027,3.0,3511.5,3510.7,2.84842]
[1719798082933,3.0,3511.5,3510.6,3.0]
[1719798083347,2.84798,3511.3,3510.6,3.0]
[1719798083929,5.84779,3511.5,3510.6,3.0]
[1719798085140,3.0,3511.5,3510.6,3.0]
[1719798085520,4.32649502,3511.5,3510.6,3.0]
[1719798085742,7.17429502,3511.5,3510.6,3.0]
[1719798086035,4.32649502,3511.5,3510.6,3.0]
[1719798086238,4.32649502,3511.5,3510.1,1.140677]
[1719798086239,2.84828,3510.9,3510.1,4.140677]
[1719798086452,3.417911,3510.9,3510.1,4.140677]
[1719798086658,2.84828,3510.9,3510.1,1.140677]
[1719798087961,2.84828,3510.9,3510.0,3.0]
[1719798088101,2.84853,3510.6,3510.0,3.0]
[1719798088304,9.66843,3510.6,3510.0,3.0]
[1719798088522,9.66843,3510.6,3509.7,1.31612202]
[1719798088523,8.071578,3510.6,3509.7,1.31612202]
[1719798088725,2.84891,3510.2,3509.7,1.31612202]
[1719798089743,2.84892,3510.1,3509.7,1.31612202]
[1719798091970,2.84911,3509.9,3509.7,1.31612202]
[1719798092315,2.84911,3509.9,3509.2,3.0]
[1719798092762,2.84876,3510.3,3509.2,3.0]
[1719798092940,2.84902,3510.0,3509.2,3.0]
[1719798096046,2.84915,3509.9,3509.1,1.141002]
[1719798096347,7.0438,3509.7,3508.7,3.0]
[1719798096552,2.84942,3509.5,3508.8,1.141081]
[1719798097668,2.84955,3509.4,3508.7,3.0]
[1719798098568,7.0438,3509.7,3508.7,5.85001]
[1719798098718,9.8931,3509.7,3508.7,5.85001]
[1719798099062,2.84934,3509.6,3508.7,3.0]
[1719798099215,7.0438,3509.7,3508.7,3.0]
[1719798099416,0.989297,3509.6,3508.7,3.0]
[1719798100351,2.84941,3509.5,3508.7,3.0]
[1719798102342,7.0438,3509.7,3508.8,2.84991]
[1719798102517,2.8491,3509.9,3508.8,2.84991]
[1719798102518,2.84909,3509.9,3508.9,2.84988]
[1719798103063,2.84901,3510.0,3508.9,2.84988]
[1719798103229,3.0,3509.9,3508.9,2.84988]
[1719798103565,3.0,3509.9,3509.0,2.8498]
[1719798104738,3.0,3509.9,3508.7,2.85004]
[1719798105062,2.84928,3509.7,3508.7,2.85004]
[1719798105438,2.84934,3509.6,3508.7,2.85004]
[1719798106277,2.84934,3509.6,3508.6,1.141155]
[1719798106581,2.84934,3509.6,3508.6,3.991265]
[1719798106755,2.84934,3509.6,3508.7,2.85004]
[1719798106956,3.41919,3509.6,3508.6,1.141155]
[1719798107168,3.41919,3509.6,3508.6,3.991285]
[1719798107491,2.84953,3509.4,3508.6,1.141155]
[1719798107645,9.88523,3509.4,3508.6,1.141155]
[1719798107845,1.330456,3509.3,3508.4,2.8503]
[1719798108074,1.330456,3509.3,3508.0,12.8495]
[1719798108075,2.84966,3509.2,3508.3,2.85037]
[1719798108259,0.56985,3509.6,3508.1,2.85049]
[1719798108461,3.0,3509.7,3508.5,3.0]
[1719798108662,3.0,3509.7,3508.6,0.05699455]
[1719798108878,3.0,3509.7,3508.5,3.0]
[1719798108879,5.84926,3509.7,3508.7,2.85001]
[1719798109038,3.3,3509.7,3508.6,2.90712457]
[1719798109238,3.0,3509.8,3509.0,2.84976]
[1719798109501,2.84924,3509.7,3508.8,2.84993]
[1719798110802,2.84941,3509.5,3508.5,5.85021]
[1719798110951,3.419275,3509.5,3508.6,2.85013]
[1719798111490,3.419275,3509.5,3508.5,5.8502]
[1719798112190,0.569865,3509.5,3508.5,5.8502]
[1719798112408,5.84911,3509.9,3508.8,2.84997]
[1719798112686,2.84917,3509.8,3508.8,2.84997]
[1719798112901,3.0,3509.9,3509.1,2.8497]
[1719798113060,1.428705,3509.9,3509.1,2.8497]
[1719798113262,3.0,3510.0,3508.9,3.0]
[1719798113502,2.84849,3510.7,3509.7,2.84923]
[1719798113791,6.5027,3510.4,3509.5,2.8494]
[1719798113950,6.5027,3510.4,3509.3,5.84955]
[1719798113951,9.35138,3510.4,3509.3,5.84955]
[1719798114471,2.8489,3510.2,3509.3,3.0]
[1719798114668,1.220029,3510.1,3509.3,3.0]
[1719798114865,1.220029,3510.1,3509.1,2.84972]
[1719798115196,4.068959,3510.1,3509.1,2.84972]
[1719798115852,4.068959,3510.1,3508.9,2.84988]
[1719798115853,2.84909,3509.9,3508.9,2.84988]
[1719798116356,4.068979,3510.1,3509.0,2.8498]
[1719798116677,0.6917829,3510.0,3509.1,2.84967]
[1719798116862,0.6917829,3510.0,3509.2,2.84964]
[1719798117478,0.6917829,3510.0,3509.3,2.84955]
[1719798117999,1.220029,3510.1,3509.4,2.84948]
[1719798118556,3.0,3510.3,3509.5,2.84939]
[1719798119477,8.8221,3510.9,3509.8,2.8491]
[1719798119673,3.0,3510.8,3509.8,2.8491]
[1719798121289,3.0,3510.8,3509.9,2.84904]
[1719798121476,6.7991,3510.9,3510.2,2.84878]
[1719798121820,0.284792,3511.3,3510.2,2.84878]
[1719798122897,0.284792,3511.3,3510.7,2.84839]
[1719798123214,2.84746,3512.0,3510.6,2.84851]
[1719798123215,9.6396,3511.8,3510.6,2.84851]
[1719798123575,9.6396,3511.8,3510.7,2.84839]
[1719798123791,6.792,3511.8,3510.7,0.05696556]
[1719798124129,6.792,3511.8,3510.8,2.84833]
[1719798124332,6.792,3511.8,3510.9,2.84827]
[1719798124544,6.792,3511.8,3511.1,2.8481]
[1719798124828,6.792,3511.8,3511.3,2.846288]
[1719798125617,6.792,3511.8,3511.1,2.8481]
[1719798125793,7.7712,3511.8,3511.1,2.8481]
[1719798126121,7.7712,3511.8,3511.2,2.84802]
[1719798127457,7.7712,3511.8,3511.3,2.84794]
[1719798127794,3.0,3512.1,3511.3,2.84794]
[1719798127994,6.8051,3512.2,3511.3,0.05695921]
[1719798128226,6.7517,3512.6,3511.9,2.84744]
[1719798128645,6.7517,3512.6,3512.2,2.84717]
[1719798128797,9.59813,3513.2,3512.2,2.84718]
[1719798128998,1.162113,3513.1,3512.2,2.84718]
[1719798129827,1.162113,3513.1,3511.9,3.0]
[1719798130033,1.162113,3513.1,3512.5,2.84691]
[1719798130828,1.162113,3513.1,3512.3,2.84712]
[1719798131052,1.162113,3513.1,3512.1,2.84729]
[1719798131353,0.9936813,3513.0,3512.2,2.84718]
[1719798132213,0.9936813,3513.0,3512.1,2.84728]
[1719798132836,0.9936813,3513.0,3512.2,2.84721]
[1719798133797,0.9936813,3513.0,3512.0,2.84734]
[1719798134001,0.9936813,3513.0,3512.1,2.84728]
[1719798134249,1.35918713,3512.9,3512.1,2.84728]
[1719798134734,1.35918713,3512.9,3511.9,5.84745]
[1719798135098,4.20587713,3512.9,3511.9,5.84745]
[1719798135345,1.35918713,3512.9,3511.9,5.84745]
[1719798135498,0.81995084,3512.8,3511.9,5.84745]
[1719798137035,0.81995084,3512.8,3511.8,2.84751]
[1719798137564,0.9936813,3513.0,3511.8,2.84751]
[1719798137704,2.84674,3512.8,3511.8,2.84751]
[1719798137906,2.84684,3512.7,3511.7,2.84761]
[1719798138218,8.1966,3512.5,3510.3,2.023]
[1719798138413,2.8474,3512.0,3510.9,2.84821]
[1719798138816,2.84728,3512.2,3511.1,2.8481]
[1719798139014,0.869434,3512.1,3511.1,2.8481]
[1719798139425,0.869434,3512.1,3511.1,3.988487]
[1719798139625,0.869434,3512.1,3511.2,2.84802]
[1719798139947,6.1736,3512.5,3511.3,0.05695783]
[1719798140123,6.1736,3512.5,3512.0,2.84732]
[1719798140338,6.77922513,3512.9,3512.0,2.84732]
[1719798140506,1.06195164,3512.8,3512.0,2.84732]
[1719798140905,1.06195164,3512.8,3512.1,2.84728]
[1719798141432,6.77922513,3512.9,3512.1,2.84728]
[1719798141643,6.77922513,3512.9,3512.3,2.84709]
[1719798141963,6.77922513,3512.9,3512.2,2.84715]
[1719798143655,6.77922513,3512.9,3512.0,2.84737]
[1719798143832,6.77922513,3512.9,3512.1,2.84722]
[1719798144010,0.67792251,3512.8,3512.1,2.84722]
[1719798144650,0.67792251,3512.8,3511.9,2.84745]
[1719798144857,0.67792251,3512.8,3511.8,2.84754]
[1719798145720,0.67792251,3512.8,3511.9,2.84741]
[1719798146223,0.67792251,3512.8,3511.8,2.84753]
[1719798146560,1.03038076,3512.7,3511.6,3.0]
[1719798146921,1.03038076,3512.7,3511.9,2.84745]
[1719798147441,1.03038076,3512.7,3511.6,3.0]
[1719798147442,1.03038076,3512.7,3512.0,2.8473]
[1719798147837,1.03038076,3512.7,3511.8,2.84748]
[1719798148131,0.78096059,3512.6,3511.8,2.84748]
[1719798148337,0.78096059,3512.6,3511.9,2.84745]
[1719798148955,0.78096059,3512.6,3511.5,2.84773]
[1719798149134,2.84716,3512.3,3511.1,1.140387]
[1719798149335,2.84716,3512.3,3510.9,3.0]
[1719798149577,2.8473,3512.1,3510.9,5.84826]
[1719798149785,2.8473,3512.1,3511.0,1.140386]
[1719798150074,0.569446,3512.0,3511.0,3.988556]
[1719798150233,2.84716,3512.3,3511.3,2.84794]
[1719798150234,5.69437,3512.3,3511.3,2.84794]
[1719798150437,7.03956906,3512.5,3511.6,2.84764]
[1719798150735,3.78205297,3512.4,3511.6,2.84764]
[1719798151273,6.62916297,3512.4,3511.4,2.84786]
[1719798151985,3.78205297,3512.4,3511.4,2.84786]
[1719798152692,6.62911297,3512.4,3511.4,2.84786]
[1719798152893,1.44496426,3512.3,3511.4,2.84786]
[1719798153798,4.29211426,3512.3,3511.3,2.84793]
[1719798154592,4.29211426,3512.3,3511.4,2.84785]
[1719798154593,1.44496426,3512.3,3511.4,2.84785]
[1719798155001,1.44496426,3512.3,3511.0,3.988566]
[1719798155206,1.64738772,3512.2,3511.4,2.84785]
[1719798155354,1.64738772,3512.2,3511.2,2.84798]
[1719798155558,4.64738772,3512.2,3511.5,2.84776]
[1719798155784,0.54294407,3512.1,3511.5,2.84776]
[1719798156095,0.54294407,3512.1,3511.6,2.84769]
[1719798156303,3.78205297,3512.4,3511.8,2.84747]
[1719798156304,3.0,3512.4,3511.8,2.84747]
[1719798158398,3.0,3512.4,3511.6,2.84769]
[1719798159905,3.0,3512.4,3511.7,2.84762]
[1719798160395,6.3768,3512.5,3512.0,2.84737]
[1719798163461,6.3768,3512.5,3511.8,2.84753]
[1719798163674,6.3768,3512.5,3511.0,4.140379]
[1719798163973,2.84719,3512.3,3511.3,2.84794]
[1719798164175,2.84727,3512.2,3511.3,2.84794]
[1719798164377,3.416746,3512.1,3511.1,2.84809]
[1719798164600,2.84738,3512.0,3511.1,2.84808]
[1719798165064,9.22548,3511.9,3511.0,1.140379]
[1719798165267,2.84757,3511.8,3511.0,1.140379]
[1719798165592,2.84757,3511.8,3510.9,2.8482]
[1719798166097,6.378,3511.9,3511.0,2.84817]
[1719798166498,6.378,3511.9,3511.3,2.84792]